bitfinex/quotes_SOLUSD_20250207
["timestamp","ask_amount","ask_price","bid_price","bid_amount"]
[1738937987769,23.58870005,201.82,201.76,13.41184853]
[1738937988051,23.52570005,201.8,201.74,23.52570005]
[1738937988238,0.063,201.82,201.74,23.52570005]
[1738937988239,23.52570005,201.81,201.75,13.41184853]
[1738937988848,38.32143773,201.81,201.75,13.41184853]
[1738937989036,38.32143773,201.79,201.72,39.84673773]
[1738937989240,38.32143773,201.79,201.74,13.41184853]
[1738937989736,38.32143773,201.79,201.72,38.32143773]
[1738937989941,38.32143773,201.78,201.71,38.32143773]
[1738937990438,38.32143773,201.78,201.72,38.32143773]
[1738937990651,38.32143773,201.77,201.71,38.32143773]
[1738937990834,38.32143773,201.76,201.69,38.32143773]
[1738937991040,38.32143773,201.75,201.69,38.32143773]
[1738937991257,38.32143773,201.8,201.69,38.32143773]
[1738937991258,38.32143773,201.74,201.69,13.41184853]
[1738937992260,38.32143773,201.79,201.73,38.32143773]
[1738937992556,20.0,201.79,201.75,38.32143773]
[1738937993150,0.063,201.82,201.74,51.73328626]
[1738937993151,38.32143773,201.8,201.74,51.73328626]
[1738937993458,38.32143773,201.79,201.72,38.32143773]
[1738937993962,38.32143773,201.78,201.71,38.32143773]
[1738937994371,38.32143773,201.78,201.72,38.32143773]
[1738937994657,38.32143773,201.78,201.71,38.32143773]
[1738937994843,38.32143773,201.77,201.71,38.32143773]
[1738937995049,38.32143773,201.77,201.7,38.32143773]
[1738937995239,38.32143773,201.75,201.69,38.32143773]
[1738937995438,38.32143773,201.75,201.69,43.20143773]
[1738937995834,38.32143773,201.79,201.72,38.32143773]
[1738937996572,38.32143773,201.81,201.75,38.32143773]
[1738937997067,38.32143773,201.8,201.73,51.73328626]
[1738937997272,38.32143773,201.79,201.73,51.73328626]
[1738937997467,38.32143773,201.79,201.73,13.41184853]
[1738937997653,38.32143773,201.8,201.73,51.73328626]
[1738937997840,38.32143773,201.81,201.74,38.32143773]
[1738937998040,38.32143773,201.8,201.73,51.73328626]
[1738937998751,38.32143773,201.79,201.73,13.41184853]
[1738937998945,38.38443773,201.82,201.75,51.73328626]
[1738937999738,38.32143773,201.81,201.75,13.41184853]
[1738938000143,38.38443773,201.82,201.75,56.68978626]
[1738938000344,38.32143773,201.76,201.7,4.88]
[1738938000545,20.0,201.77,201.7,4.88]
[1738938000765,20.0,201.77,201.7,43.20143773]
[1738938001070,20.063,201.82,201.71,14.15531348]
[1738938001366,20.063,201.82,201.71,13.41184853]
[1738938001554,20.063,201.82,201.7,4.88]
[1738938001759,20.0,201.81,201.7,4.88]
[1738938001959,38.32143773,201.74,201.7,4.88]
[1738938002147,38.32143773,201.74,201.68,13.44184853]
[1738938002348,38.32143773,201.73,201.68,13.44184853]
[1738938002647,38.32143773,201.8,201.69,13.41184853]
[1738938002648,38.32143773,201.74,201.69,13.41184853]
[1738938002851,38.32143773,201.79,201.73,38.32143773]
[1738938003183,38.32143773,201.79,201.72,38.32143773]
[1738938003346,13.41184853,201.81,201.68,0.03]
[1738938003550,20.063,201.82,201.68,0.03]
[1738938003551,20.0,201.79,201.68,0.03]
[1738938003747,20.0,201.79,201.68,13.44184853]
[1738938003954,20.0,201.79,201.69,0.74353217]
[1738938004263,0.063,201.82,201.68,13.44184853]
[1738938004264,20.063,201.82,201.68,13.44184853]
[1738938004772,38.32143773,201.75,201.69,4.86]
[1738938004970,38.32143773,201.79,201.72,38.32143773]
[1738938005167,38.32143773,201.76,201.69,43.18143773]
[1738938005353,38.32143773,201.75,201.7,13.41184853]
[1738938005553,38.32143773,201.74,201.68,0.03]
[1738938006072,20.063,201.82,201.71,38.32143773]
[1738938006263,38.32143773,201.8,201.74,38.32143773]
[1738938006566,0.063,201.82,201.78,38.32143773]
[1738938007148,0.063,201.82,201.81,38.32143773]
[1738938007749,0.063,201.82,201.8,51.73328626]
[1738938008754,0.063,201.82,201.8,36.98096129]
[1738938009462,0.063,201.82,201.81,29.17220448]
[1738938009666,0.063,201.82,201.81,42.58405301]
[1738938010664,0.063,201.88,201.82,14.95964853]
[1738938010947,0.063,201.88,201.87,51.68558586]
[1738938011170,0.063,201.88,201.87,52.42824879]
[1738938011370,0.063,201.88,201.87,53.42824879]
[1738938011880,0.063,201.92,201.9,20.0]
[1738938012181,0.063,201.92,201.91,54.97439862]
[1738938012350,0.063,201.92,201.91,53.97439862]
[1738938012552,0.063,201.92,201.91,54.97439862]
[1738938012751,0.063,201.92,201.91,59.92709862]
[1738938013382,0.063,201.96,201.95,38.27373733]
[1738938013553,0.063,201.96,201.95,57.28795658]
[1738938013760,0.063,201.96,201.95,58.28795658]
[1738938013957,0.063,202.01,201.99,20.0]
[1738938014280,0.063,202.01,202.0,14.15407943]
[1738938014572,0.063,202.01,202.0,52.42781676]
[1738938017286,0.063,202.01,202.0,95.65195409]
[1738938017587,0.063,202.03,202.01,14.41184853]
[1738938017788,0.063,202.03,202.02,52.42764077]
[1738938018160,0.063,202.03,202.02,57.37764077]
[1738938018783,0.063,202.03,202.02,14.15390344]
[1738938018983,0.063,202.03,202.02,52.42764077]
[1738938019388,0.063,202.03,202.02,53.42764077]
[1738938019795,0.063,202.07,202.06,33.41184853]
[1738938019990,0.063,202.07,202.06,72.42751073]
[1738938020303,0.063,202.07,202.06,83.71141073]
[1738938021397,0.063,202.07,202.06,114.71141073]
[1738938021694,0.063,202.07,202.06,113.96948586]
[1738938023883,0.063,202.11,202.1,1.0]
[1738938024192,0.063,202.11,202.1,96.5610752]
[1738938024378,0.063,202.11,202.1,95.5610752]
[1738938024581,0.063,202.11,202.1,96.5610752]
[1738938024983,0.063,202.11,202.1,101.5090752]
[1738938025288,0.063,202.11,202.1,57.37533787]
[1738938025471,0.063,202.11,202.1,62.23533787]
[1738938026172,0.063,202.11,202.1,101.5090752]
[1738938026572,0.063,202.11,202.1,239.5520752]
[1738938026780,0.063,202.22,202.19,38.27373733]
[1738938026994,38.33673733,202.22,202.16,39.01541462]
[1738938027299,0.063,202.22,202.18,38.27373733]
[1738938028078,0.063,202.22,202.17,38.27373733]
[1738938028294,0.063,202.22,202.16,39.01541462]
[1738938028900,0.063,202.22,202.18,38.27373733]
[1738938029108,38.33673733,202.22,202.16,39.01541462]
[1738938029311,38.33673733,202.21,202.16,0.74167729]
[1738938029595,38.27373733,202.2,202.13,43.11373733]
[1738938029793,38.27373733,202.2,202.14,0.74181452]
[1738938030091,38.27373733,202.2,202.14,39.01555185]
[1738938030293,58.33673733,202.21,202.15,38.27373733]
[1738938030505,20.063,202.21,202.16,39.01557723]
[1738938030678,0.063,202.21,202.19,23.48114146]
[1738938030873,0.063,202.21,202.2,24.22277854]
[1738938031185,0.063,202.21,202.2,37.63462707]
[1738938032070,0.063,202.21,202.2,42.58012707]
[1738938032273,0.063,202.21,202.2,67.06126853]
[1738938032485,0.063,202.21,202.2,66.06126853]
[1738938032683,0.063,202.21,202.2,0.74163708]
[1738938032915,0.063,202.21,202.18,159.98114146]
[1738938032916,0.063,202.21,202.18,4.84]
[1738938033204,0.063,202.21,202.18,28.32114146]
[1738938033578,0.063,202.21,202.12,9.0247]
[1738938033579,23.48114146,202.2,202.14,23.48114146]
[1738938033783,23.48114146,202.16,202.13,0.7416923]
[1738938034099,23.48114146,202.18,202.12,36.89298999]
[1738938034305,0.063,202.21,202.11,5.58187965]
[1738938034306,23.48114146,202.15,202.11,0.74187965]
[1738938034478,23.48114146,202.15,202.1,4.84]
[1738938034808,23.48114146,202.16,202.1,29.06309279]
[1738938034983,23.48114146,202.19,202.12,36.89298999]
[1738938035189,23.54414146,202.21,202.15,23.48114146]
[1738938035423,0.063,202.21,202.16,23.48114146]
[1738938036082,23.54414146,202.21,202.15,23.48114146]
[1738938036415,23.48114146,202.19,202.13,23.48114146]
[1738938036590,23.48114146,202.2,202.14,24.22305305]
[1738938036921,23.48114146,202.19,202.14,0.74191159]
[1738938037086,23.48114146,202.19,202.14,4.84]
[1738938037283,23.54414146,202.21,202.14,42.47483626]
[1738938037490,23.54414146,202.21,202.15,23.48114146]
[1738938037822,23.54414146,202.21,202.14,29.06298773]
[1738938038219,23.48114146,202.2,202.14,29.06298773]
[1738938038692,23.48114146,202.19,202.14,18.9936948]
[1738938038896,23.48114146,202.19,202.14,5.58184627]
[1738938039097,23.48114146,202.19,202.14,4.84]
[1738938039818,0.063,202.21,202.16,23.48114146]
[1738938040020,0.063,202.21,202.16,24.2229115]
[1738938040223,0.063,202.21,202.16,0.74177004]
[1738938040529,23.48114146,202.2,202.14,5.58175646]
[1738938040729,23.54414146,202.21,202.14,29.06289792]
[1738938041225,23.54414146,202.21,202.16,23.48114146]
[1738938041226,0.063,202.21,202.16,23.48114146]
[1738938041518,0.063,202.21,202.16,24.22285299]
[1738938041721,0.063,202.21,202.18,23.48114146]
[1738938041902,0.063,202.21,202.2,23.48114146]
[1738938042102,0.063,202.21,202.18,24.22278857]
[1738938042306,0.063,202.21,202.2,23.48114146]
[1738938042622,0.063,202.21,202.17,0.74149094]
[1738938043923,23.54414146,202.21,202.16,0.74173688]
[1738938044303,0.063,202.21,202.11,0.74178499]
[1738938044504,23.48114146,202.17,202.12,4.84]
[1738938044707,0.063,202.21,202.13,0.74190239]
[1738938044899,23.48114146,202.17,202.12,4.84]
[1738938045100,23.48114146,202.18,202.12,4.84]
[1738938045295,23.48114146,202.19,202.13,23.48114146]
[1738938045691,23.48114146,202.2,202.14,13.41184853]
[1738938045891,0.063,202.21,202.16,13.41184853]
[1738938046099,0.063,202.21,202.18,36.89298999]
[1738938046335,0.063,202.21,202.19,0.74161424]
[1738938046510,0.063,202.21,202.18,14.15346277]
[1738938047229,0.063,202.21,202.18,37.63460423]
[1738938047399,0.063,202.21,202.19,23.48114146]
[1738938047600,0.063,202.21,202.18,14.15346277]
[1738938048610,0.063,202.21,202.2,36.89298999]
[1738938048802,0.063,202.21,202.2,37.63450502]
[1738938049808,0.063,202.21,202.2,41.83848999]
[1738938050200,0.063,202.21,202.2,37.63453142]
[1738938050523,0.063,202.21,202.19,0.74158175]
[1738938050716,23.48114146,202.2,202.17,0.74167058]
[1738938051019,23.48114146,202.2,202.17,4.84]
[1738938051821,0.063,202.21,202.17,4.84]
[1738938051822,23.48114146,202.19,202.17,4.84]
[1738938053702,23.48114146,202.2,202.17,4.84]
[1738938057542,6.6669,202.21,202.13,0.74184502]
[1738938057716,6.6669,202.21,202.12,4.84]
[1738938057717,23.48114146,202.16,202.12,4.84]
[1738938057911,23.48114146,202.17,202.12,4.84]
[1738938058234,23.48114146,202.15,202.12,4.84]
[1738938058413,23.48114146,202.14,202.09,4.84]
[1738938058614,23.48114146,202.13,202.07,0.74200753]
[1738938058929,23.48114146,202.14,202.08,4.84]
[1738938060023,23.48114146,202.2,202.13,23.48114146]
[1738938060221,6.6669,202.21,202.16,23.48114146]
[1738938060222,0.063,202.21,202.16,23.48114146]
[1738938060428,0.063,202.21,202.17,0.74172328]
[1738938060636,0.063,202.21,202.17,24.22286474]
[1738938061027,0.063,202.21,202.17,0.74172328]
[1738938061432,0.063,202.21,202.17,24.22286474]
[1738938061613,0.063,202.21,202.17,0.74172328]
[1738938062115,23.54414146,202.21,202.14,23.48114146]
[1738938062318,23.48114146,202.2,202.13,0.74176162]
[1738938062632,23.48114146,202.19,202.14,4.84]
[1738938062931,0.063,202.21,202.08,136.5]
[1738938062932,23.48114146,202.15,202.09,24.22301261]
[1738938063236,23.48114146,202.12,202.1,4.84]
[1738938063537,1.5421,202.18,202.1,4.84]
[1738938063538,23.48114146,202.14,202.1,4.84]
[1738938064234,23.48114146,202.15,202.1,4.84]
[1738938064414,23.48114146,202.14,202.1,4.84]
[1738938064616,23.48114146,202.14,202.08,4.84]
[1738938064817,1.5421,202.18,202.08,4.84]
[1738938064818,23.48114146,202.13,202.08,4.84]
[1738938065022,0.063,202.21,202.14,13.41184853]
[1738938065211,0.063,202.21,202.16,13.41184853]
[1738938065409,0.063,202.21,202.18,13.41184853]
[1738938065609,0.063,202.21,202.2,23.48114146]
[1738938066442,0.063,202.21,202.19,24.22275782]
[1738938067133,0.063,202.21,202.2,23.48114146]
[1738938067721,0.063,202.21,202.17,23.48114146]
[1738938068021,0.063,202.21,202.18,0.74171813]
[1738938068346,23.48114146,202.2,202.13,23.48114146]
[1738938068550,23.48114146,202.18,202.12,0.74187534]
[1738938068722,0.063,202.21,202.15,23.48114146]
[1738938068921,0.063,202.21,202.15,24.22296848]
[1738938069227,6.1362,202.21,202.11,0.03]
[1738938069735,23.48114146,202.17,202.11,0.03]
[1738938070239,29.61734146,202.21,202.14,23.48114146]
[1738938070534,0.063,202.21,202.15,24.22295655]
[1738938070838,23.54414146,202.21,202.14,24.22298077]
[1738938071137,0.063,202.21,202.19,23.48114146]
[1738938071340,0.063,202.21,202.2,37.63463118]
[1738938071845,0.063,202.21,202.2,61.11577264]
[1738938072147,0.0001,202.21,202.2,197.61577264]
[1738938072452,0.0001,202.21,202.2,173.39298999]
[1738938072741,0.0001,202.21,202.2,178.33848999]
[1738938073619,0.0001,202.21,202.2,201.81963145]
[1738938073825,0.0001,202.21,202.2,178.33848999]
[1738938075142,0.0001,202.21,202.2,201.81963145]
[1738938075321,0.0001,202.22,202.21,13.41184853]
[1738938075521,0.063,202.28,202.21,13.41184853]
[1738938075522,0.063,202.28,202.26,13.41184853]
[1738938075724,0.063,202.28,202.27,37.63419825]
[1738938075942,0.063,202.28,202.27,24.22234972]
[1738938076239,0.063,202.28,202.27,0.74120826]
[1738938076745,0.063,202.28,202.26,0.7413808]
[1738938077241,0.063,202.28,202.26,4.84]
[1738938077945,23.48114146,202.27,202.26,4.84]
[1738938078261,23.48114146,202.27,202.21,0.74156201]
[1738938078537,23.48114146,202.23,202.19,4.82]
[1738938078747,38.1602723,202.23,202.19,4.82]
[1738938078941,6.2094,202.28,202.16,4.82]
[1738938078942,38.1602723,202.21,202.16,4.82]
[1738938079319,38.1602723,202.2,202.16,4.82]
[1738938080046,38.1602723,202.21,202.16,4.82]
[1738938080622,38.1602723,202.22,202.16,4.82]
[1738938080946,38.1602723,202.22,202.16,42.9802723]
[1738938082126,38.1602723,202.23,202.16,42.9802723]
[1738938082331,38.1602723,202.24,202.17,38.1602723]
[1738938082539,38.1602723,202.22,202.16,43.72204336]
[1738938083033,38.1602723,202.23,202.16,10.50827106]
[1738938083235,38.1602723,202.25,202.18,38.1602723]
[1738938083441,6.2094,202.28,202.2,38.1602723]
[1738938083442,38.1602723,202.27,202.2,38.1602723]
[1738938083622,6.2094,202.28,202.22,38.1602723]
[1738938083829,44.3696723,202.28,202.21,38.9018449]
[1738938084054,38.1602723,202.24,202.17,0.74159503]
[1738938084358,38.1602723,202.23,202.17,0.74159503]
[1738938084648,38.1602723,202.24,202.17,38.90186733]
[1738938084829,38.1602723,202.25,202.18,38.1602723]
[1738938085026,38.1602723,202.27,202.2,38.1602723]
[1738938085229,38.1602723,202.25,202.19,0.74173434]
[1738938085747,6.2094,202.28,202.19,38.90200664]
[1738938085748,38.1602723,202.26,202.19,38.90200664]
[1738938085960,6.2094,202.28,202.19,38.90200664]
[1738938085961,38.1602723,202.27,202.2,38.1602723]
[1738938086137,38.2232723,202.28,202.21,38.90181165]
[1738938086335,0.063,202.28,202.22,38.1602723]
[1738938086637,0.063,202.28,202.23,0.74152541]
[1738938087640,0.063,202.28,202.18,13.41184853]
[1738938087641,38.1602723,202.27,202.2,51.57212083]
[1738938087863,38.1602723,202.27,202.21,0.74157693]
[1738938088031,38.2232723,202.28,202.21,38.90184923]
[1738938089155,38.2232723,202.28,202.2,4.82]
[1738938089156,38.1602723,202.25,202.2,4.82]
[1738938089451,38.1602723,202.27,202.2,42.9802723]
[1738938089761,38.2232723,202.28,202.21,38.90189873]
[1738938089931,0.063,202.28,202.22,38.1602723]
[1738938090255,0.063,202.28,202.2,4.82]
[1738938090256,0.063,202.28,202.23,38.90177149]
[1738938090849,38.2232723,202.28,202.23,0.74149919]
[1738938091044,38.1602723,202.26,202.2,4.82]
[1738938091239,38.1602723,202.25,202.2,4.82]
[1738938091658,38.1602723,202.24,202.2,4.82]
[1738938091834,38.1602723,202.25,202.21,0.03]
[1738938092036,20.0,202.27,202.22,38.1602723]
[1738938092238,0.063,202.28,202.22,38.1602723]
[1738938092959,38.1602723,202.26,202.21,0.03]
[1738938093264,38.1602723,202.25,202.21,0.03]
[1738938093827,38.1602723,202.24,202.21,0.03]
[1738938094457,38.1602723,202.23,202.21,0.03]
[1738938094633,38.1602723,202.22,202.21,0.03]
[1738938096668,38.2232723,202.28,202.21,38.1902723]
[1738938096855,20.0,202.25,202.21,0.03]
[1738938097036,18.0,202.25,202.21,0.03]
[1738938098050,38.1602723,202.26,202.21,0.03]
[1738938098359,38.1602723,202.24,202.21,0.03]
[1738938098536,38.1602723,202.22,202.21,0.03]
[1738938098934,38.1602723,202.23,202.21,0.03]
[1738938100256,38.1602723,202.24,202.21,0.03]
[1738938100440,38.1602723,202.23,202.21,0.03]
[1738938100756,23.48247487,202.23,202.21,0.03]
[1738938100943,23.48247487,202.24,202.21,0.03]
[1738938101457,23.48247487,202.25,202.21,0.03]
[1738938101652,23.54547487,202.28,202.21,0.03]
[1738938102061,23.48247487,202.27,202.21,0.03]
[1738938102560,0.063,202.28,202.23,23.48247487]
[1738938102877,0.063,202.28,202.24,23.48247487]
[1738938103057,0.063,202.28,202.22,23.48247487]
[1738938103270,23.48247487,202.27,202.21,0.77146176]
[1738938103555,0.063,202.28,202.23,23.48247487]
[1738938103761,0.063,202.28,202.24,24.22397521]
[1738938103959,0.063,202.28,202.25,23.48247487]
[1738938104163,0.063,202.28,202.27,23.48247487]
[1738938105341,0.063,202.28,202.27,28.42627487]
[1738938105753,0.063,202.28,202.27,23.48247487]
[1738938106340,0.063,202.28,202.27,41.8381234]
[1738938106951,0.063,202.28,202.27,42.57935246]
[1738938108547,0.063,202.28,202.27,23.48247487]
[1738938109375,0.063,202.28,202.27,36.8943234]
[1738938109545,0.063,202.28,202.27,37.63559382]
[1738938110393,0.063,202.28,202.27,0.74127042]
[1738938110545,0.063,202.28,202.26,0.74138951]
[1738938110745,0.063,202.28,202.25,24.22387148]
[1738938110961,0.063,202.28,202.27,23.48247487]
[1738938111161,0.063,202.28,202.27,0.74140519]
[1738938111367,0.063,202.28,202.22,23.48247487]
[1738938111554,0.063,202.28,202.23,5.5615458]
[1738938111861,0.063,202.28,202.23,4.82]
[1738938112067,0.063,202.28,202.24,24.22403064]
[1738938112558,0.063,202.28,202.24,0.74155577]
[1738938113277,0.063,202.28,202.23,5.56152052]
[1738938113560,23.54547487,202.28,202.23,0.74152052]
[1738938113768,23.48247487,202.27,202.22,4.82]
[1738938114849,0.063,202.28,202.22,4.82]
[1738938114850,23.48247487,202.25,202.22,4.82]
[1738938115163,23.48247487,202.26,202.22,4.82]
[1738938115371,0.063,202.28,202.23,23.48247487]
[1738938115571,23.54547487,202.28,202.22,5.56155258]
[1738938115756,23.54547487,202.28,202.22,5.59159425]
[1738938116144,23.54547487,202.28,202.23,23.48247487]
[1738938116145,0.063,202.28,202.23,23.48247487]
[1738938116382,0.063,202.28,202.25,23.48247487]
[1738938116551,0.063,202.28,202.24,0.7415654]
[1738938116552,0.063,202.28,202.27,23.48247487]
[1738938116961,0.063,202.28,202.25,23.48247487]
[1738938117371,0.063,202.28,202.26,24.22391425]
[1738938117546,0.063,202.28,202.27,23.48247487]
[1738938118071,0.063,202.28,202.27,28.42627487]
[1738938118246,0.063,202.28,202.27,23.48247487]
[1738938118573,0.063,202.28,202.26,23.48247487]
[1738938119086,0.063,202.28,202.25,5.6855085]
[1738938119251,0.063,202.28,202.26,4.82]
[1738938119451,23.54547487,202.28,202.26,4.82]
[1738938119750,0.063,202.28,202.22,29.19876191]
[1738938119954,0.063,202.28,202.23,28.30247487]
[1738938120275,23.48247487,202.26,202.23,4.82]
[1738938120655,23.48247487,202.27,202.23,4.82]
[1738938120976,0.063,202.28,202.23,5.56160434]
[1738938121180,0.063,202.28,202.24,13.41184853]
[1738938121352,0.063,202.28,202.27,23.48247487]
[1738938122065,0.063,202.28,202.27,42.57947466]
[1738938122554,0.063,202.28,202.27,29.16762613]
[1738938123255,0.063,202.28,202.25,4.9441]
[1738938123455,0.063,202.28,202.24,24.22383286]
[1738938124080,0.063,202.28,202.27,36.8943234]
[1738938124269,0.0001,202.28,202.27,205.72417608]
[1738938124578,0.063,202.33,202.27,228.46549827]
[1738938124783,0.063,202.33,202.32,36.8943234]
[1738938124951,0.063,202.33,202.32,37.63536495]
[1738938125155,0.063,202.37,202.33,13.41184853]
[1738938125394,0.063,202.37,202.32,24.22351642]
[1738938125395,0.063,202.37,202.36,23.48247487]
[1738938125570,0.063,202.37,202.36,47.39686797]
[1738938126082,0.0001,202.37,202.36,183.89686797]
[1738938126258,0.0001,202.37,202.36,183.1559234]
[1738938126453,0.0001,202.37,202.36,46.6559234]
[1738938126791,0.0001,202.37,202.36,47.39675813]
[1738938127082,0.0001,202.37,202.36,4.82]
[1738938127497,23.48257487,202.37,202.36,4.82]
[1738938127992,23.48257487,202.37,202.36,2.82]
[1738938128693,23.48257487,202.37,202.27,4.8]
[1738938128880,23.48247487,202.32,202.27,4.8]
[1738938129083,23.48247487,202.3,202.27,4.8]
[1738938129283,23.48247487,202.29,202.27,4.8]
[1738938129486,23.48247487,202.28,202.25,0.03]
[1738938129691,23.48247487,202.26,202.25,0.03]
[1738938130066,1.0,202.25,202.22,14.58417474]
[1738938130268,33.41184853,202.22,202.11,0.03]
[1738938130493,1.0,202.21,202.11,0.03]
[1738938130691,3.5359,202.27,202.13,23.48247487]
[1738938130862,22.5359,202.27,202.12,4.8]
[1738938131063,23.48247487,202.23,202.16,23.48247487]
[1738938132097,23.48247487,202.24,202.17,23.48247487]
[1738938132305,23.48247487,202.22,202.15,44.22424502]
[1738938132463,23.48247487,202.23,202.16,23.48247487]
[1738938133010,23.48247487,202.21,202.14,23.48247487]
[1738938133180,23.48247487,202.18,202.11,23.51247487]
[1738938133489,23.48247487,202.14,202.11,0.03]
[1738938133694,23.48247487,202.13,202.11,0.03]
[1738938133987,23.48247487,202.14,202.11,0.03]
[1738938134381,23.48247487,202.12,202.11,0.03]
[1738938135873,36.8943234,202.12,202.11,0.03]
[1738938136079,61.37679827,202.12,202.11,0.03]
[1738938136394,23.48247487,202.05,202.04,0.03]
[1738938136976,20.0,202.02,201.99,0.03]
[1738938137189,1.0,202.03,201.99,0.03]
[1738938137190,46.96494974,202.0,201.99,0.03]
[1738938137509,61.37679827,202.0,201.99,0.03]
[1738938137710,61.37679827,202.0,201.95,0.03]
[1738938137711,33.41184853,201.97,201.95,0.03]
[1738938138004,23.48247487,201.96,201.95,0.03]
[1738938138684,33.41184853,201.96,201.95,0.03]
[1738938139224,34.41184853,201.96,201.95,0.03]
[1738938139577,14.41184853,201.95,201.94,0.063]
[1738938139875,14.41184853,201.95,201.9,0.03]
[1738938139876,14.41184853,201.91,201.9,0.03]
[1738938140082,90.96511135,201.91,201.9,0.03]
[1738938140802,13.41184853,201.87,201.79,0.03]
[1738938140995,38.27663141,201.82,201.79,0.03]
[1738938141198,38.27663141,201.83,201.79,0.03]
[1738938141501,38.27663141,201.85,201.79,38.27663141]
[1738938141892,38.27663141,201.83,201.77,38.27663141]
[1738938142194,7.64505255,201.84,201.76,38.27663141]
[1738938142806,7.64505255,201.84,201.77,38.27663141]
[1738938142975,38.27663141,201.82,201.76,38.27663141]
[1738938143385,38.27663141,201.84,201.77,38.27663141]
[1738938143594,7.64505255,201.86,201.76,38.27663141]
[1738938143595,38.27663141,201.82,201.76,38.27663141]
[1738938143898,15.29010511,201.87,201.71,1.0]
[1738938143899,38.27663141,201.77,201.71,38.27663141]
[1738938144209,8.64505255,201.85,201.7,4.9876]
[1738938144210,38.27663141,201.76,201.7,0.03]
[1738938144397,38.27663141,201.74,201.7,0.03]
[1738938144709,20.0,201.81,201.7,4.9878]
[1738938145004,20.0,201.81,201.73,38.27663141]
[1738938145005,38.27663141,201.8,201.73,38.27663141]
[1738938145206,38.27663141,201.79,201.73,38.27663141]
[1738938145409,38.27663141,201.78,201.71,43.23413141]
[1738938145596,38.27663141,201.79,201.72,38.27663141]
[1738938145807,38.27663141,201.8,201.73,38.27663141]
[1738938146102,38.27663141,201.76,201.7,0.03]
[1738938146281,38.27663141,201.74,201.7,0.03]
[1738938146484,38.27663141,201.72,201.7,0.03]
[1738938146700,38.27663141,201.73,201.7,0.03]
[1738938146907,51.68847994,201.8,201.7,0.03]
[1738938146908,38.27663141,201.75,201.7,0.03]
[1738938147102,20.0,201.77,201.7,0.03]
[1738938147103,38.27663141,201.77,201.7,43.26443141]
[1738938147476,38.27663141,201.76,201.7,0.03]
[1738938147700,38.27663141,201.73,201.7,0.03]
[1738938148003,38.27663141,201.71,201.7,0.03]
[1738938148779,38.27663141,201.73,201.7,0.03]
[1738938148985,38.27663141,201.75,201.7,0.03]
[1738938149183,38.27663141,201.73,201.7,0.03]
[1738938149603,38.27663141,201.73,201.68,0.03]
[1738938149982,38.27663141,201.71,201.68,0.03]
[1738938150283,38.27663141,201.73,201.68,0.03]
[1738938151291,38.27663141,201.69,201.68,0.03]
[1738938151924,38.27663141,201.69,201.59,43.26713141]
[1738938152096,1.0,201.72,201.59,43.26713141]
[1738938152293,7.64505255,201.87,201.6,13.41184853]
[1738938152294,21.0,201.76,201.6,13.41184853]
[1738938152592,38.27663141,201.71,201.65,38.27663141]
[1738938152792,1.0,201.78,201.68,38.27663141]
[1738938153000,38.27663141,201.77,201.71,38.27663141]
[1738938153304,82.8,201.79,201.65,13.41184853]
[1738938153623,38.27663141,201.77,201.71,312.0]
[1738938153812,38.27663141,201.78,201.72,38.27663141]
[1738938154016,58.27663141,201.79,201.72,38.27663141]
[1738938154224,7.64505255,201.82,201.72,38.27663141]
[1738938154402,7.64505255,201.82,201.66,14.15541829]
[1738938154403,38.27663141,201.8,201.73,38.27663141]
[1738938154598,38.27663141,201.81,201.74,38.27663141]
[1738938154805,7.64505255,201.82,201.74,14.1552612]
[1738938155026,7.64505255,201.82,201.81,38.27663141]
[1738938155220,20.0,201.85,201.8,38.27663141]
[1738938155424,7.0571,201.91,201.72,4.82]
[1738938155425,38.27663141,201.82,201.75,58.27663141]
[1738938155927,38.27663141,201.82,201.75,63.23313141]
[1738938156234,38.27663141,201.84,201.77,38.27663141]